bitfinex-derivatives/quotes_ETHF0:USTF0_20250905
["timestamp","ask_amount","ask_price","bid_price","bid_amount"]
[1757084393137,3.2078,4273.1,4272.5,2.2514]
[1757084393441,3.2078,4274.1,4273.3,1.617]
[1757084393636,3.2078,4274.1,4273.4,0.265]
[1757084394034,2.7078,4274.1,4273.3,4.8248]
[1757084394336,4.6648,4274.6,4273.6,1.617]
[1757084394536,4.6648,4274.6,4273.7,0.42113]
[1757084394730,1.457,4274.6,4273.9,3.2078]
[1757084394932,1.457,4274.6,4274.0,0.265]
[1757084395136,4.6648,4275.1,4274.0,1.882]
[1757084395335,4.6648,4275.1,4274.0,0.265]
[1757084395336,1.457,4274.8,4274.0,0.265]
[1757084395542,1.457,4274.8,4274.1,0.265]
[1757084395741,3.2078,4274.3,4274.2,0.265]
[1757084395945,1.457,4274.8,4274.2,0.265]
[1757084396142,3.2078,4274.6,4274.2,0.265]
[1757084396444,1.457,4274.5,4274.2,0.265]
[1757084396744,1.457,4275.0,4274.2,0.265]
[1757084397240,1.457,4275.0,4273.9,3.2078]
[1757084397443,1.457,4275.0,4274.0,0.265]
[1757084397634,3.2078,4275.1,4274.1,1.617]
[1757084397837,1.457,4275.5,4274.5,1.617]
[1757084398343,1.9719,4275.5,4274.5,1.617]
[1757084398548,1.457,4275.0,4274.4,3.4728]
[1757084398846,1.457,4275.0,4274.4,3.2078]
[1757084399147,1.457,4275.1,4274.4,0.265]
[1757084399537,1.457,4275.1,4274.5,0.265]
[1757084399844,1.457,4275.1,4274.6,0.265]
[1757084400044,3.2078,4275.2,4274.6,1.882]
[1757084400237,4.6648,4274.7,4273.7,0.265]
[1757084400547,1.457,4273.6,4272.7,1.617]
[1757084400735,1.457,4273.2,4272.8,1.617]
[1757084400935,4.6648,4273.3,4272.3,1.617]
[1757084401240,4.6648,4273.3,4272.4,0.265]
[1757084401433,4.6648,4273.3,4272.5,0.265]
[1757084401634,4.6648,4273.3,4271.7,33.35231]
[1757084401635,3.2078,4272.6,4271.7,1.617]
[1757084401832,3.2078,4272.6,4268.1,10.54219]
[1757084401833,3.2078,4271.8,4270.0,2.2514]
[1757084402036,3.2078,4270.8,4270.2,3.2078]
[1757084402237,3.2078,4271.4,4270.4,1.617]
[1757084402438,0.5141,4272.5,4270.3,0.265]
[1757084402439,1.457,4272.5,4271.4,2.2514]
[1757084402738,1.457,4272.6,4271.5,0.265]
[1757084402939,0.5141,4274.0,4272.2,1.617]
[1757084402940,3.2078,4273.0,4272.2,1.617]
[1757084403245,0.42123,4272.8,4272.6,1.617]
[1757084403441,1.05284,4273.7,4272.8,1.617]
[1757084403641,3.2078,4274.1,4273.0,0.4212]
[1757084403842,0.42113,4273.7,4273.2,0.6344]
[1757084404032,1.457,4274.3,4273.7,1.617]
[1757084404232,0.42111,4274.0,4273.8,4.8248]
[1757084404441,0.42116,4273.5,4273.3,1.617]
[1757084404646,0.42116,4273.4,4273.3,1.617]
[1757084404839,0.42115,4273.5,4273.4,0.265]
[1757084405039,0.42121,4272.9,4272.8,1.617]
[1757084405234,1.05293,4273.4,4272.4,3.2078]
[1757084405442,2.10556,4274.0,4271.9,3.2078]
[1757084405443,1.05307,4272.8,4271.9,3.2078]
[1757084405741,1.05316,4272.4,4271.6,1.617]
[1757084405946,0.42132,4271.8,4271.7,0.265]
[1757084406149,0.42132,4271.8,4271.1,3.2078]
[1757084406150,0.42138,4271.2,4271.1,4.8248]
[1757084406542,3.2078,4272.0,4271.1,5.0898]
[1757084406746,3.2078,4272.0,4271.1,3.4728]
[1757084406950,3.2078,4272.0,4271.2,1.617]
[1757084407245,3.2078,4271.3,4270.4,1.617]
[1757084407442,3.2078,4271.3,4270.5,0.265]
[1757084407956,3.2078,4271.3,4270.6,1.617]
[1757084408142,3.2078,4271.8,4270.7,3.2078]
[1757084408541,3.2078,4271.8,4270.8,0.6344]
[1757084408742,1.457,4271.7,4270.9,0.265]
[1757084408943,1.457,4271.2,4270.2,0.6344]
[1757084409144,1.457,4271.2,4270.2,3.8422]
[1757084409348,1.457,4271.2,4270.3,0.265]
[1757084409547,3.2078,4271.3,4270.7,3.2078]
[1757084409749,3.2078,4271.3,4270.1,1.617]
[1757084409750,1.457,4271.2,4270.1,1.617]
[1757084409944,1.457,4270.7,4270.0,0.265]
[1757084410140,1.457,4270.7,4269.6,3.2078]
[1757084410452,3.2078,4270.8,4269.4,1.617]
[1757084410453,1.457,4270.5,4269.4,3.2078]
[1757084410647,3.2078,4269.9,4268.9,3.4728]
[1757084411047,3.2078,4269.9,4269.0,3.4728]
[1757084411247,3.2078,4269.9,4269.1,3.4728]
[1757084411449,3.2078,4270.8,4269.9,1.617]
[1757084411654,4.6648,4271.3,4270.3,3.2078]
[1757084412250,3.2078,4270.7,4270.1,1.617]
[1757084412459,3.2078,4270.7,4269.5,3.2078]
[1757084412649,1.457,4270.6,4269.6,0.265]
[1757084413454,1.457,4270.6,4269.9,3.2078]
[1757084413748,1.457,4270.6,4269.6,0.265]
[1757084414254,1.457,4270.6,4269.6,0.8994]
[1757084414650,4.6648,4271.3,4269.9,2.03851]
[1757084415049,0.23416,4271.2,4269.9,1.617]
[1757084415248,3.2078,4270.8,4269.7,0.265]
[1757084415452,3.4728,4270.8,4269.2,3.2078]
[1757084415646,1.457,4270.2,4269.0,2.2514]
[1757084415950,3.2078,4269.8,4268.4,2.2514]
[1757084416157,3.2078,4269.3,4268.5,0.265]
[1757084416357,3.20640362,4269.3,4268.5,0.265]
[1757084416555,3.20640362,4269.3,4269.0,0.6344]
[1757084416752,3.2078,4269.8,4269.1,1.617]
[1757084417350,3.2078,4269.9,4269.1,1.617]
[1757084417549,3.2078,4271.0,4269.7,1.05383]
[1757084417852,3.2078,4272.2,4271.4,1.617]
[1757084418255,1.554,4272.1,4271.0,0.265]
[1757084418452,1.554,4272.1,4270.3,3.2078]
[1757084418453,1.554,4271.9,4270.3,3.2078]
[1757084418757,3.2078,4271.1,4270.3,3.2078]
[1757084419054,1.554,4271.1,4270.3,3.2078]
[1757084419259,1.819,4271.3,4270.7,3.2078]
[1757084419460,0.265,4271.3,4270.7,3.2078]
[1757084419754,1.554,4271.1,4270.0,3.2078]
[1757084419949,1.554,4271.1,4269.8,3.2078]
[1757084420149,1.554,4270.6,4269.8,3.2078]
[1757084420350,1.554,4270.4,4269.5,4.776]
[1757084420552,1.554,4271.0,4270.1,3.2078]
[1757084420853,3.8198,4272.6,4270.7,1.05358]
[1757084421045,1.554,4272.2,4271.7,3.2078]
[1757084421245,1.554,4272.1,4271.9,3.2078]
[1757084421445,0.612,4272.6,4270.9,3.2078]
[1757084421645,1.554,4271.9,4270.9,3.2078]
[1757084421852,1.554,4271.9,4270.6,0.265]
[1757084421853,0.265,4272.1,4271.4,3.2078]
[1757084422056,1.554,4272.2,4271.4,3.2078]
[1757084422363,0.265,4272.7,4271.9,3.2078]
[1757084422547,1.554,4272.8,4271.9,3.2078]
[1757084422858,0.612,4274.4,4272.6,1.05311]
[1757084422859,3.2078,4274.0,4272.6,1.05311]
[1757084423050,1.554,4274.3,4273.7,3.2078]
[1757084423251,0.612,4273.8,4273.3,3.2078]
[1757084423556,1.554,4273.7,4272.7,3.4728]
[1757084423752,3.2078,4274.0,4272.7,3.4728]
[1757084423753,3.2078,4274.0,4273.2,0.42118]
[1757084424050,3.2078,4274.0,4273.3,1.8332]
[1757084424254,1.554,4274.4,4273.5,3.2078]
[1757084424555,3.2078,4274.3,4273.4,0.265]
[1757084424858,3.2078,4274.2,4273.3,3.2078]
[1757084425354,3.2078,4274.2,4273.2,3.2078]
[1757084425550,3.2078,4274.2,4273.3,0.42117]
[1757084425850,3.2078,4274.2,4273.3,1.5682]
[1757084426957,3.2078,4273.4,4272.6,2.2092]
[1757084427254,3.2078,4274.0,4273.0,1.5682]
[1757084427458,3.2078,4274.0,4273.3,1.5682]
[1757084427953,3.2078,4274.0,4273.4,0.265]
[1757084428150,3.2078,4275.3,4273.9,1.5682]
[1757084428356,3.2078,4275.3,4274.1,1.5682]
[1757084428554,3.2078,4274.8,4274.1,1.5682]
[1757084428760,3.2078,4274.3,4273.4,3.2078]
[1757084429055,3.2078,4274.3,4273.5,1.5682]
[1757084429256,4.7618,4275.0,4274.0,1.5682]
[1757084429449,4.7618,4275.0,4274.1,3.4728]
[1757084429450,3.2078,4275.0,4274.1,3.4728]
[1757084429759,3.2078,4275.5,4274.4,2.2092]
[1757084429955,3.2078,4275.5,4274.9,1.5682]
[1757084430155,3.2078,4275.5,4275.0,0.906]
[1757084430862,3.2078,4275.5,4275.1,1.5682]
[1757084431055,3.2078,4275.5,4274.7,0.265]
[1757084431260,3.2078,4275.5,4275.1,1.5682]
[1757084431455,0.265,4276.1,4275.3,1.5682]
[1757084431456,3.4728,4276.1,4275.3,1.5682]
[1757084431660,3.2078,4276.1,4275.3,4.776]
[1757084432063,3.2078,4276.1,4275.6,2.2092]
[1757084432259,3.2078,4276.1,4275.8,1.5682]
[1757084432562,1.554,4276.0,4274.3,1.5682]
[1757084432858,1.554,4275.2,4273.9,1.8332]
[1757084433064,3.2078,4274.8,4274.3,1.5682]
[1757084433266,1.41469,4276.2,4274.8,1.5682]
[1757084433267,3.2078,4275.6,4274.8,1.5682]
[1757084433459,3.2078,4275.6,4274.9,3.2078]
[1757084433667,3.2078,4276.1,4274.9,3.2078]
[1757084433961,3.2078,4276.1,4275.0,0.641]
[1757084434162,3.2078,4276.1,4275.6,0.641]
[1757084434459,1.10869,4276.2,4275.8,1.5682]
[1757084434765,1.10869,4276.2,4275.7,0.265]
[1757084434968,1.10869,4276.2,4275.8,0.265]
[1757084435263,3.2078,4275.9,4275.8,0.265]
[1757084435464,1.10869,4276.2,4275.9,1.5682]
[1757084435961,3.2078,4277.1,4276.2,0.641]
[1757084436161,3.2078,4277.1,4276.3,1.8332]
[1757084436357,3.2078,4277.1,4276.3,1.5682]
[1757084436560,3.2078,4277.1,4276.4,0.265]
[1757084436863,3.2078,4276.8,4276.1,0.265]
[1757084437060,3.2078,4277.6,4276.6,4.776]
[1757084437257,3.2078,4277.6,4276.7,0.265]
[1757084437455,3.2078,4277.6,4276.6,1.5682]
[1757084437456,4.7618,4277.5,4276.6,1.8332]
[1757084437761,1.554,4276.9,4276.2,0.265]
[1757084438062,1.554,4276.9,4275.8,1.5682]
[1757084438462,1.554,4276.3,4275.3,0.265]
[1757084438668,3.2078,4276.4,4275.4,3.2078]
[1757084438969,4.7618,4277.9,4276.0,1.5682]
[1757084439164,4.7618,4277.9,4277.1,3.2078]
[1757084439371,3.2078,4278.4,4277.3,1.5682]
[1757084439967,3.2078,4277.9,4276.9,3.2078]
[1757084440162,3.2078,4277.9,4277.0,0.265]
[1757084440366,3.2078,4277.9,4276.8,0.641]
[1757084440562,4.7618,4277.1,4276.4,0.264]
[1757084440759,4.7618,4277.1,4276.3,0.264]
[1757084441165,4.7618,4277.1,4276.2,3.2078]
[1757084441365,4.7618,4277.1,4276.4,1.8322]
[1757084441764,0.612,4277.4,4274.4,32.94]
[1757084441765,3.2078,4276.6,4276.3,0.264]
[1757084441965,1.554,4276.5,4276.3,0.264]
[1757084442165,3.2078,4276.6,4276.4,1.5682]
[1757084442559,3.2078,4277.2,4276.5,1.5682]
[1757084442977,4.7618,4278.0,4277.1,3.2078]
[1757084443167,4.7618,4278.0,4277.2,0.264]
[1757084443567,3.2078,4278.0,4277.2,0.264]
[1757084443764,1.05192,4277.5,4276.9,3.2078]
[1757084443967,0.42081,4277.0,4276.9,3.2078]
[1757084444169,0.42081,4277.0,4276.9,3.4718]
[1757084444471,0.42081,4277.0,4276.9,1.5682]
[1757084444695,0.42081,4277.0,4276.9,1.8322]
[1757084445273,2.60596,4277.3,4276.9,0.264]
[1757084445463,1.05196,4277.3,4276.3,1.5682]
[1757084445662,1.05196,4277.3,4276.4,0.264]
[1757084446068,3.2078,4277.5,4276.5,1.5682]
[1757084446467,3.2078,4277.0,4276.5,1.5682]
[1757084446671,3.2078,4277.0,4276.3,1.5682]
[1757084446979,4.7618,4276.4,4276.0,0.264]
[1757084447178,1.554,4276.3,4275.5,1.5682]
[1757084447383,3.2078,4275.8,4274.8,4.776]
[1757084447678,3.2078,4275.8,4275.1,1.5682]
[1757084448068,3.2078,4276.3,4275.4,3.2078]
[1757084448273,3.2078,4276.3,4275.0,0.641]
[1757084448274,3.2078,4276.3,4275.5,1.7688]
[1757084448772,3.2078,4276.3,4275.6,0.264]
[1757084448972,0.612,4276.8,4275.8,1.5048]
[1757084448973,3.2078,4276.8,4275.8,1.5048]
[1757084449169,3.2078,4277.3,4276.4,1.5048]
[1757084449372,2.1548,4278.0,4276.9,3.2078]
[1757084449572,2.1548,4278.0,4277.0,0.264]
[1757084449777,1.5428,4278.0,4277.1,4.7126]
[1757084449978,1.5428,4278.0,4277.2,3.2078]
[1757084450369,1.5428,4278.0,4277.1,1.5048]
[1757084450570,1.5428,4278.0,4277.2,0.264]
[1757084450967,1.5428,4278.0,4277.2,3.4718]
[1757084451469,4.7506,4278.0,4277.3,0.264]
[1757084451774,1.5428,4278.6,4277.8,4.7126]
[1757084451972,3.2078,4279.4,4278.1,1.5048]
[1757084452170,4.7506,4279.4,4278.1,1.5048]
[1757084452480,3.2078,4279.0,4278.2,0.264]
[1757084452676,1.5428,4279.4,4278.3,0.264]
[1757084452877,1.5428,4279.4,4278.2,3.2078]
[1757084453079,4.9206,4278.9,4277.6,3.2078]
[1757084453270,4.9206,4278.9,4277.7,0.264]
[1757084453581,4.9206,4278.9,4277.8,1.5048]
[1757084453877,3.3778,4278.9,4278.3,3.2078]
[1757084454079,1.5428,4278.8,4278.4,0.264]
[1757084454270,4.9206,4278.9,4278.3,3.2078]
[1757084454470,3.3778,4278.9,4278.5,0.264]
[1757084454873,3.3778,4278.9,4278.3,3.2078]
[1757084454874,1.5428,4278.8,4278.3,3.2078]
[1757084455075,3.3778,4278.9,4278.5,1.5048]
[1757084455274,3.3778,4278.9,4278.3,3.2078]
[1757084455474,1.5428,4278.8,4278.4,0.264]
[1757084455676,1.5428,4278.8,4278.3,3.2078]
[1757084455880,1.5428,4278.3,4277.2,1.5048]
[1757084456075,0.6367,4278.6,4277.3,0.264]
[1757084456276,1.5428,4277.2,4275.9,4.7126]
[1757084456584,1.5428,4277.2,4276.3,1.7688]
[1757084456779,4.7506,4277.9,4276.9,3.2078]
[1757084456974,4.7506,4277.9,4277.0,0.264]
[1757084457179,1.5428,4277.2,4276.2,2.1233]
[1757084457376,1.5428,4277.2,4275.9,3.2078]
[1757084457579,1.5428,4277.2,4276.5,3.2078]
[1757084458081,3.2078,4277.8,4277.1,3.2078]
[1757084458275,1.5428,4277.9,4277.2,0.264]
[1757084458476,1.5428,4277.9,4277.2,3.4718]
[1757084458674,1.5428,4277.9,4277.2,3.2078]
[1757084458872,1.5428,4277.9,4277.3,0.264]
[1757084459077,3.2078,4277.6,4277.3,0.264]
[1757084459277,1.5428,4277.5,4276.5,4.7126]
[1757084460176,3.2078,4277.7,4277.0,3.2078]
[1757084460375,1.5428,4277.0,4276.5,3.2078]
[1757084460581,1.5428,4277.1,4276.5,3.2078]
[1757084460782,1.5428,4277.1,4276.4,0.264]
[1757084461176,1.5428,4277.1,4276.0,3.2078]
[1757084461373,3.2078,4276.6,4276.0,3.2078]
[1757084461885,1.5428,4276.7,4276.0,3.2078]
[1757084462275,3.2078,4276.2,4275.3,1.5048]
[1757084462479,3.2078,4276.2,4274.5,34.34358344]
[1757084462480,1.5428,4276.1,4275.4,0.264]
[1757084462682,1.5428,4275.5,4275.2,0.264]
[1757084462880,3.2078,4275.6,4275.2,0.264]
[1757084463180,3.2078,4275.6,4274.9,1.5048]
[1757084463382,3.2078,4276.1,4275.3,3.2078]
[1757084463582,3.2078,4276.1,4275.5,1.5048]
[1757084463788,0.264,4276.7,4275.8,3.2078]
[1757084463988,0.264,4276.7,4275.9,0.264]
[1757084464189,0.264,4276.7,4275.5,1.5048]
[1757084464485,4.7506,4275.7,4275.0,0.264]
[1757084464882,3.2078,4275.1,4274.7,0.264]
[1757084465087,4.7506,4275.7,4274.7,0.264]
[1757084465504,1.5428,4275.7,4274.7,0.264]
[1757084465901,1.5428,4276.1,4275.1,3.2078]
[1757084466200,1.5428,4275.3,4274.5,2.07158344]
[1757084466400,3.2078,4274.9,4274.5,2.07158344]
[1757084466599,1.5428,4274.8,4273.5,1.5048]
[1757084466801,3.2078,4273.8,4273.0,1.5048]
[1757084467098,3.2078,4273.3,4273.0,1.5048]
[1757084467298,3.2078,4273.3,4272.9,1.5048]
[1757084467606,3.2078,4273.7,4272.8,1.7688]
[1757084467800,0.6566,4273.8,4273.2,3.2078]
[1757084468101,0.264,4274.0,4273.2,3.2078]
[1757084468297,3.2078,4274.2,4273.3,0.264]
[1757084468500,0.9206,4274.4,4273.4,4.7126]
[1757084468903,3.2078,4273.8,4273.2,0.8825]
[1757084469102,3.2078,4274.4,4273.2,0.8825]
[1757084469397,3.2078,4274.4,4273.3,1.5048]
[1757084469603,3.2078,4274.4,4273.7,1.5048]
[1757084469799,3.2078,4274.0,4273.8,0.264]
[1757084470202,3.2078,4274.0,4273.2,2.1233]
[1757084470402,0.23399,4274.0,4272.6,2.0918828]
[1757084470602,3.2078,4273.3,4272.6,0.264]
[1757084470995,3.2078,4272.7,4271.9,1.5048]
[1757084471305,0.6566,4273.3,4271.9,1.5048]
[1757084471306,3.2078,4272.8,4272.1,0.264]
[1757084471907,0.6566,4273.3,4272.3,3.2078]
[1757084472205,3.2078,4272.9,4272.4,0.264]
[1757084472404,3.2078,4272.9,4272.4,1.7688]
[1757084472595,0.6566,4272.8,4271.7,1.5048]
[1757084472799,3.2078,4272.5,4271.7,1.5048]
[1757084472999,3.2078,4272.2,4271.7,1.5048]
[1757084473196,3.2078,4272.9,4272.1,1.5048]
[1757084473401,3.2078,4273.3,4272.2,0.264]
[1757084474302,3.2078,4273.8,4272.7,1.5048]
[1757084474507,3.4718,4274.3,4273.0,1.5048]
[1757084475001,3.2078,4274.3,4273.0,1.5048]
[1757084475202,3.4718,4274.8,4273.2,0.42119]
[1757084475408,3.2078,4274.3,4273.5,1.5048]
[1757084475706,3.2078,4275.1,4274.4,0.6185]
[1757084476001,3.2078,4275.1,4274.5,1.7688]
[1757084476203,3.2078,4275.7,4274.6,1.5048]
[1757084476617,1.17353473,4276.3,4274.9,3.2078]
[1757084476914,3.2078,4276.0,4275.1,1.5048]
[1757084477602,3.2078,4275.4,4273.1,3.2078]
[1757084477805,3.2078,4274.9,4273.9,0.264]
[1757084478200,3.2078,4274.4,4273.2,2.1068]
[1757084478510,3.2078,4274.6,4272.6,0.8825]
[1757084478708,0.264,4274.3,4273.4,1.4883]
[1757084479098,3.8613,4273.9,4272.8,1.4883]
[1757084479604,3.2078,4273.7,4272.9,1.4883]
[1757084480010,3.2078,4273.2,4272.7,3.2078]
[1757084480306,3.2078,4273.2,4272.8,1.4883]
[1757084480707,3.2078,4273.2,4272.7,3.2078]
[1757084481010,3.2078,4273.2,4272.1,1.4883]
[1757084481011,0.6535,4273.0,4271.6,3.2078]
[1757084481308,3.2078,4272.2,4271.6,3.4718]
[1757084481709,3.2078,4272.2,4272.0,0.6454]
[1757084481913,3.2078,4272.8,4272.0,0.6454]
[1757084482410,3.2078,4272.8,4271.7,1.4883]
[1757084482411,3.2078,4272.3,4271.7,1.4883]
[1757084482613,3.2078,4272.3,4271.6,3.4718]
[1757084482799,3.2078,4271.7,4271.6,1.4883]
[1757084483106,3.2078,4271.7,4270.9,1.4883]
[1757084483512,4.1253,4272.2,4270.9,1.4883]
[1757084483808,0.6535,4271.3,4270.3,1.4883]
[1757084484206,0.6535,4271.3,4270.4,0.264]
[1757084484406,0.6535,4271.3,4270.3,1.4883]
[1757084484605,3.2078,4271.4,4270.4,0.264]
[1757084484908,0.6552,4271.8,4270.6,1.4883]
[1757084485114,0.264,4271.6,4270.6,1.4883]
[1757084485707,3.2078,4271.4,4270.6,1.4883]
[1757084485912,3.2078,4271.4,4270.2,0.6454]
[1757084485913,3.863,4271.4,4270.4,0.264]
[1757084486113,3.863,4271.4,4270.5,1.4883]
[1757084487606,3.863,4271.4,4270.5,4.6961]
[1757084487812,3.863,4271.4,4270.5,1.4883]
[1757084488214,0.6552,4270.7,4269.3,3.2078]
[1757084488413,3.2078,4270.3,4269.3,4.6961]
[1757084488615,3.2078,4270.3,4269.4,1.4883]
[1757084489116,0.264,4270.2,4268.9,1.4883]
[1757084489322,3.2078,4269.6,4268.9,1.4883]
[1757084489721,3.2078,4269.6,4267.8,0.02016345]
[1757084489722,0.6552,4268.9,4267.8,0.02016345]
[1757084489921,3.2078,4268.5,4267.8,0.02016345]
[1757084490416,0.3251,4270.2,4267.0,3.2078]
[1757084490417,3.8428,4268.0,4267.0,3.2078]
[1757084490619,0.264,4268.4,4267.3,1.4883]
[1757084490819,3.2078,4268.0,4267.3,1.4883]
[1757084491215,0.264,4268.4,4267.3,1.4883]
[1757084491418,3.2078,4268.1,4267.4,1.4883]
[1757084491624,3.4718,4268.7,4267.8,0.6454]
[1757084492022,3.4718,4268.7,4267.7,3.2078]
[1757084492217,3.2078,4268.7,4267.3,1.4883]
[1757084492417,3.2078,4268.7,4267.4,0.264]
[1757084492618,0.264,4268.6,4267.5,1.4883]
[1757084492814,3.2078,4268.7,4267.5,1.4883]
[1757084493220,3.2078,4268.7,4267.6,1.4883]
[1757084493422,0.635,4269.2,4267.6,1.4883]
[1757084493423,3.8428,4269.2,4267.6,1.4883]
[1757084493620,3.2078,4269.2,4268.1,1.4883]
[1757084493815,0.635,4269.8,4267.8,0.6454]
[1757084493816,3.2078,4269.7,4268.5,3.2078]
[1757084494016,3.2078,4269.7,4268.7,3.2078]
[1757084494319,3.2078,4269.0,4268.3,0.264]
[1757084494625,0.635,4268.4,4267.5,1.4883]
[1757084494825,3.2078,4267.9,4267.5,1.4883]
[1757084495029,3.2078,4267.9,4267.3,1.4883]
[1757084495422,3.2078,4268.0,4267.3,1.4883]
[1757084495619,3.2078,4269.2,4267.9,1.4883]
[1757084495928,3.2078,4269.2,4267.8,0.6454]
[1757084495929,3.2078,4269.2,4268.2,1.4883]
[1757084496131,0.264,4269.8,4269.0,2.1337]
[1757084496322,3.2078,4269.9,4269.1,1.4883]
[1757084496522,3.2078,4270.4,4269.6,0.6454]
[1757084496723,0.635,4270.3,4269.3,1.4883]
[1757084496924,3.2078,4270.4,4269.3,1.4883]
[1757084497126,3.2078,4269.9,4269.4,0.264]
[1757084497526,3.2078,4269.9,4269.0,0.6454]
[1757084498027,0.635,4269.3,4267.5,35.5308]
[1757084498232,0.635,4268.7,4267.5,32.323]
[1757084498533,3.2078,4269.1,4268.0,1.4883]
[1757084498725,3.2078,4268.8,4268.1,0.264]
[1757084498921,3.2078,4268.2,4268.0,1.4883]
[1757084499120,3.2078,4268.1,4268.0,1.4883]
[1757084499729,3.2078,4268.1,4267.8,1.4883]
[1757084499919,3.2078,4268.1,4267.0,3.2078]
[1757084500232,3.2078,4268.1,4266.9,0.264]
[1757084500233,3.2078,4267.5,4266.9,0.264]
[1757084500628,3.2078,4267.5,4267.0,1.4883]
[1757084500829,3.2078,4267.5,4266.6,1.4883]
[1757084502025,0.264,4267.8,4266.6,1.4883]
[1757084502220,0.635,4268.0,4266.6,1.4883]
[1757084502422,3.2078,4267.2,4265.9,1.4883]
[1757084502635,3.2078,4267.2,4265.9,1.72263]
[1757084502636,3.4718,4267.2,4265.9,1.72263]
[1757084502832,3.4718,4267.2,4265.9,1.4883]
[1757084503026,0.264,4267.5,4266.4,3.2078]
[1757084503225,0.264,4267.5,4266.7,1.4883]
[1757084503731,0.264,4267.4,4265.9,1.4883]
[1757084504030,0.635,4268.0,4266.6,2.1337]
[1757084504232,0.635,4268.0,4266.6,0.9094]
[1757084504527,0.264,4267.9,4266.7,1.4883]
[1757084504932,3.2078,4267.8,4266.7,1.4883]
[1757084505435,3.2078,4268.5,4267.8,0.6454]
[1757084506228,3.4718,4268.5,4267.8,0.6454]
[1757084506427,3.4718,4268.5,4267.7,1.4883]
[1757084506428,3.2078,4268.5,4267.7,1.4883]
[1757084506935,3.2078,4268.5,4267.8,0.6454]
[1757084507831,0.635,4268.4,4267.2,0.6454]
[1757084508137,0.42179,4267.3,4267.2,1.4883]
[1757084508337,1.05455,4267.1,4266.8,3.2078]
[1757084508831,0.42183,4266.9,4266.8,3.2078]
[1757084509034,3.4718,4268.2,4266.9,0.23435999]
[1757084509235,0.42178,4267.5,4267.4,1.5952]
[1757084509736,1.05441,4267.7,4267.2,0.6318]
[1757084509929,1.057,4267.6,4266.7,4.803]
[1757084510230,1.321,4267.6,4266.2,4.803]
[1757084510431,3.4718,4267.6,4266.2,4.803]
[1757084510625,3.4718,4267.6,4265.4,0.6454]
[1757084510626,3.2078,4266.5,4265.4,0.6454]
[1757084510827,3.2078,4266.0,4264.9,1.5952]
[1757084511132,1.321,4265.9,4264.9,1.5952]
[1757084511334,1.057,4265.9,4264.9,1.5952]
[1757084511639,0.264,4265.8,4264.9,1.5952]
[1757084511937,3.2078,4265.4,4264.3,3.2078]
[1757084512236,3.2078,4264.6,4263.8,1.5952]
[1757084512437,1.057,4263.7,4262.8,0.17828448]
[1757084512630,4.2648,4262.9,4261.7,3.2078]
[1757084512832,0.6431,4262.2,4261.2,3.2078]
[1757084513029,3.2078,4261.7,4260.7,4.803]
[1757084513228,32.342,4263.5,4261.3,1.5952]
[1757084513229,3.2078,4262.1,4261.3,1.5952]
[1757084513435,3.2078,4262.9,4261.3,1.5952]
[1757084513625,3.4718,4263.4,4261.5,4.803]
[1757084513836,3.2078,4263.4,4261.6,1.5952]
[1757084514030,934.7609,4279.1,4261.9,3.2078]
[1757084514031,3.2078,4262.9,4261.9,3.2078]
[1757084514227,0.264,4263.2,4262.5,1.5952]
[1757084514428,3.2078,4264.5,4262.6,3.2078]
[1757084514634,3.2078,4263.9,4262.7,1.5952]
[1757084514834,3.2078,4264.9,4263.8,1.5952]
[1757084515041,0.61752207,4264.5,4264.4,0.6318]
[1757084515336,0.61752207,4264.5,4264.4,1.5952]
[1757084515543,0.61752207,4264.5,4264.4,1.63105237]
[1757084515737,0.61752207,4264.5,4264.4,2.26285237]
[1757084516044,3.2078,4266.2,4264.5,1.5952]
[1757084516242,1.17353473,4266.5,4265.3,1.5952]
[1757084516434,1.17353473,4266.5,4265.2,3.2078]
[1757084516435,1.17353473,4266.5,4265.9,1.63105237]
[1757084516631,1.05462,4266.8,4266.2,3.2078]
[1757084516835,3.2078,4267.4,4266.3,1.8602]
[1757084517134,1.05447,4267.4,4266.9,3.2078]
[1757084517437,0.42181,4267.1,4266.9,3.2078]
[1757084517639,0.14786284,4268.8,4267.2,0.6318]
[1757084517941,3.3778,4268.9,4268.1,3.2078]
[1757084518140,0.6352,4268.8,4268.2,3.2078]
[1757084518441,1.5069,4267.9,4266.6,1.5952]
[1757084518736,3.2078,4267.7,4266.3,3.2078]
[1757084518940,3.2078,4266.7,4265.9,0.265]
[1757084519435,1.5069,4266.6,4265.1,1.5952]
[1757084519635,3.2078,4266.7,4265.2,3.2078]
[1757084519941,3.2078,4265.3,4264.8,0.265]
[1757084520139,3.2078,4265.7,4264.9,1.5952]
[1757084520340,3.2078,4266.2,4265.1,3.2078]
[1757084520538,3.2078,4266.2,4265.2,1.5952]
[1757084520846,0.6352,4267.2,4264.5,1.5952]